[Event "CCT Chessable Masters D-III 2024"]
[Site "Online"]
[Date "2024.02.02"]
[Round "51"]
[White "bardiya_Daneshvar"]
[Black "Demchenko, Anton"]
[Result "1/2-1/2"]
[ECO "A54"]
[WhiteElo "2585"]
[BlackElo "2609"]
[Annotator "ChessBase"]
[PlyCount "117"]
[EventDate "2024.01.12"]
[EventType "k.o."]
[EventCountry "NET"]
[SourceTitle "playchess.com"]
[Source "ChessBase"]
[SourceQuality "1"]
[TimeControl "600+2"]

1. d4 {[%emt 0:00:05]} Nf6 {[%emt 0:00:03]} 2. c4 {[%emt 0:00:00]} d6 {[%emt 0:00:01]} 3. Nc3 {[%emt 0:00:02]} e5 {[%emt 0:00:01]} 4. Nf3 {[%emt 0:00:01]} Nc6 {[%emt 0:00:01]} 5. d5 {[%emt 0:00:04]} Ne7 {[%emt 0:00:02]} 6. e4 {[%emt 0:00:01]} Ng6 {[%emt 0:00:00]} 7. g3 {[%emt 0:00:08]} Be7 {[%emt 0:00:02]} 8. h3 {[%emt 0:00:05]} h6 {[%emt 0:00:05]} 9. Be3 {[%emt 0:00:03]} O-O {[%emt 0:00:06]} 10. Bg2 {[%emt 0:00:16]} c6 {[%emt 0:00:18]} 11. O-O {[%emt 0:00:03]} cxd5 {[%emt 0:01:01]} 12. cxd5 {[%emt 0:00:04]} b5 {[%emt 0:00:26]} 13. Nd2 {[%emt 0:00:14]} Bd7 {[%emt 0:00:29]} 14. a3 {[%emt 0:00:43]} Qb8 {[%emt 0:00:21]} 15. Kh2 {[%emt 0:00:25]} Rc8 {[%emt 0:00:09]} 16. Qb3 {[%emt 0:00:27]} Bd8 {[%emt 0:00:22]} 17. Rfc1 {[%emt 0:00:14]} Bb6 {[%emt 0:00:12]} 18. Na2 {[%emt 0:00:16]} Qb7 {[%emt 0:00:44]} 19. Bf1 {[%emt 0:00:20]} a6 {[%emt 0:00:48]} 20. Qd3 {[%emt 0:00:39]} h5 {[%emt 0:00:20]} 21. Nb4 {[%emt 0:01:06]} h4 {[%emt 0:00:20]} 22. Be2 {[%emt 0:00:18]} Qa7 {[%emt 0:00:27]} 23. Bxb6 {[%emt 0:00:58]} Qxb6 {[%emt 0:00:04]} 24. Kg2 {[%emt 0:00:01]} Rab8 {[%emt 0:00:51]} 25. Qe3 {[%emt 0:00:30]} Rc5 {[%emt 0:01:25]} 26. Rxc5 {[%emt 0:00:14]} dxc5 {[%emt 0:00:01]} 27. Nd3 {[%emt 0:00:01]} c4 {[%emt 0:00:24]} 28. Qxb6 {[%emt 0:00:33]} Rxb6 {[%emt 0:00:00]} 29. Nc5 {[%emt 0:00:00]} Be8 {[%emt 0:00:23]} 30. b3 {[%emt 0:00:05]} cxb3 {[%emt 0:00:08]} 31. Ndxb3 {[%emt 0:00:00]} hxg3 {[%emt 0:00:22]} 32. fxg3 {[%emt 0:00:03]} Ne7 {[%emt 0:00:00]} 33. Nd2 {[%emt 0:00:43]} Nc8 {[%emt 0:00:05]} 34. Nf3 {[%emt 0:00:06]} Nd6 {[%emt 0:00:17]} 35. Bd3 {[%emt 0:00:01]} b4 {[%emt 0:00:06]} 36. axb4 {[%emt 0:00:31]} Rxb4 {[%emt 0:00:04]} 37. Rxa6 {[%emt 0:00:01]} Nc4 {[%emt 0:00:38]} 38. Ra8 {[%emt 0:00:25]} Kh7 {[%emt 0:00:03]} 39. Ra2 {[%emt 0:00:28]} Bb5 {[%emt 0:00:05]} 40. Kf2 {[%emt 0:00:04]} Nd6 {[%emt 0:00:02]} 41. Nxe5 {[%emt 0:00:32]} Bxd3 {[%emt 0:00:02]} 42. Nexd3 {[%emt 0:00:04]} Nfxe4+ {[%emt 0:00:04]} 43. Ke3 {[%emt 0:00:02]} Rc4 {[%emt 0:00:00]} 44. Nxe4 {[%emt 0:00:04]} Rxe4+ {[%emt 0:00:00]} 45. Kf3 {[%emt 0:00:00]} Rd4 {[%emt 0:00:03]} 46. Nf4 {[%emt 0:00:03]} g5 {[%emt 0:00:00]} 47. Ra6 {[%emt 0:00:10]} gxf4 {[%emt 0:00:03]} 48. Rxd6 {[%emt 0:00:04]} fxg3 {[%emt 0:00:00]} 49. Kxg3 {[%emt 0:00:00]} Rd3+ {[%emt 0:00:06]} 50. Kg4 {[%emt 0:00:05]} Kg7 {[%emt 0:00:00]} 51. h4 {[%emt 0:00:03]} Kf8 {[%emt 0:00:02]} 52. h5 {[%emt 0:00:04]} Ke7 {[%emt 0:00:07]} 53. h6 {[%emt 0:00:06]} Kxd6 {[%emt 0:00:02]} 54. h7 {[%emt 0:00:00]} f5+ {[%emt 0:00:00]} 55. Kxf5 {[%emt 0:00:12]} Rh3 {[%emt 0:00:01]} 56. Kg6 {[%emt 0:00:00]} Kxd5 {[%emt 0:00:01]} 57. Kg7 {[%emt 0:00:01]} Ke6 {[%emt 0:00:00]} 58. h8=Q {[%emt 0:00:00]} Rxh8 {[%emt 0:00:01]} 59. Kxh8 {[%emt 0:00:00]} 1/2-1/2

[Event "CCT Chessable Masters D-III 2024"]
[Site "Online"]
[Date "2024.02.02"]
[Round "51"]
[White "Sethu Madhav Upadhyayula"]
[Black "KuzubovYuriy"]
[Result "0-1"]
[ECO "C42"]
[WhiteElo "1502"]
[BlackElo "2682"]
[Annotator "TA"]
[PlyCount "72"]
[EventDate "2024.01.12"]
[EventType "k.o."]
[EventCountry "NET"]
[SourceTitle "playchess.com"]
[Source "ChessBase"]
[SourceQuality "1"]
[TimeControl "600+2"]

{[%evp 10,71,27,38,53,43,47,33,37,38,41,27,44,15,27,17,13,22,30,22,18,-10,0,-9,0,-197,-204,-211,-210,-181,-195,-236,-242,-262,-258,-267,-261,-256,-246,-255,-256,-282,-288,-286,-274,-281,-191,-388,-383,-458,-397,-371,-124,-150,-93,-95,0,-29987,-29988,-29990,-29991,-29998,-29999,-29999]} 1. e4 {[%emt 0:00:04]} e5 {[%emt 0:00:05]} 2. Nf3 {[%emt 0:00:02]} Nf6 {[%emt 0:00:00]} 3. Nxe5 {[%emt 0:00:01]} d6 {[%emt 0:00:01]} 4. Nf3 {[%emt 0:00:01]} Nxe4 {[%emt 0:00:01]} 5. Nc3 {[%emt 0:00:00]} Nf6 {[%emt 0:00:08]} 6. d4 {[%emt 0:00:03]} g6 {[%emt 0:00:03]} 7. Bg5 {[%emt 0:00:29] Hoping for Qe2+.} Bg7 {[%emt 0:00:03]} 8. Qe2+ {[%emt 0:00:17]} Kf8 $1 {[%emt 0:00:00] White is slightly better.} 9. O-O-O {[%emt 0:00:18]} a6 {[%emt 0:00:01]} 10. Qd2 {[%emt 0:01:01]} h6 {[%emt 0:00:07] Inhibits h4.} 11. Bh4 {[%emt 0:00:25]} b5 {[%emt 0:00:21]} 12. Bd3 {[%emt 0:00:15]} Bb7 {[%emt 0:00:35]} 13. Rhe1 {[%emt 0:00:34]} Nbd7 {[%emt 0:00:19]} 14. Kb1 {[%emt 0:00:22]} Nb6 {[%emt 0:00:14]} 15. Qe2 {[%emt 0:00:46]} Qd7 {[%emt 0:00:21]} 16. Bxf6 {[%emt 0:01:25]} Bxf6 {[%emt 0:00:02]} 17. Be4 $2 {[%emt 0:00:57]} (17. Ne4 $11 {and White is okay.} Bg7 18. Ng3) 17... d5 $1 $19 {[%emt 0:00:28]} 18. Ne5 {[%emt 0:00:17]} Bxe5 {[%emt 0:00:04]} 19. dxe5 {[%emt 0:00:02]} Qe6 $1 {[%emt 0:00:39]} (19... b4 20. Bxg6 fxg6 21. Ne4 $15) 20. Bf3 {[%emt 0:00:15]} b4 $1 {[%emt 0:00:04]} 21. Bg4 {[%emt 0:00:07]} Qe7 {[%emt 0:00:06]} 22. e6 {[%emt 0:00:03]} bxc3 {[%emt 0:00:14]} 23. Qe5 {[%emt 0:00:02][%cal Re5h8]} f6 {[%emt 0:00:05]} 24. Qxc3 {[%emt 0:00:01]} Kg7 {[%emt 0:00:13]} 25. h4 {[%emt 0:00:10]} h5 {[%emt 0:00:38]} 26. Bf3 {[%emt 0:00:03]} c5 {[%emt 0:00:10]} 27. Qb3 {[%emt 0:00:21]} Qd6 {[%emt 0:01:12] ...Rab8 is the strong threat.} 28. e7 $2 {[%emt 0:00:28]} (28. c4 {is the only way for White.}) 28... Rab8 {[%emt 0:00:56]} 29. g4 {[%emt 0:00:18]} c4 {[%emt 0:01:32]} 30. Qe3 {[%emt 0:00:21]} Bc6 $2 {[%emt 0:00:16]} (30... hxg4 $19 {is more deadly.} 31. Bxg4 Rbe8 (31... Rxh4 $2 32. e8=Q $18)) 31. gxh5 $17 {[%emt 0:00:36] [#]} Na4 {[%emt 0:00:08]} (31... gxh5 $6 32. Qe2 Qe5 33. Qxe5 fxe5 34. Rxe5 $11) (31... Nd7 $142 $1 32. h6+ Rxh6 33. Bxd5 (33. e8=B Rxe8 34. Qxe8 Ne5 $17) 33... Bxd5) 32. Ka1 {[%emt 0:00:24]} Rxb2 {[%emt 0:01:16]} (32... Nxb2 33. h6+ Kh7 (33... Rxh6 34. Rxd5 Bxd5 35. e8=Q $18) 34. h5) (32... Rhe8 $17 33. b3 cxb3 34. cxb3 Nc5) 33. Bxd5 $2 {[%emt 0:00:02][%mdl 8192] [#]} Qb4 $1 {[%emt 0:00:22] Black mates.} 34. h6+ {[%emt 0:00:19] [#]} (34. Qd4 Nc3) 34... Kh7 $1 {[%emt 0:00:08]} 35. h5 {[%emt 0:00:17] [#]} Rxa2+ $3 {[%emt 0:00:03][%mdl 512]} 36. Kxa2 {[%emt 0:00:01]} Qb2# {[%emt 0:00:00] Weighted Error Value: White=0.50/Black=0.21 (precise) .  Loses game:     	White=2     	---        Missed win:     	---       	Black=1      Mistake:       	White=1     	Black=2      Inaccurate:     	White=2     	Black=1      OK:         	White=5     	Black=9      Best:        	White=2     	Black=1      Strong:       	---       	Black=4} 0-1

[Event "CCT Chessable Masters D-III 2024"]
[Site "Online"]
[Date "2024.02.03"]
[Round "52"]
[White "Tabatabaei, M. Amin"]
[Black "BilodeauA"]
[Result "1-0"]
[ECO "E16"]
[WhiteElo "2696"]
[BlackElo "2616"]
[Annotator "ChessBase"]
[PlyCount "55"]
[EventDate "2024.01.12"]
[EventType "k.o."]
[EventCountry "NET"]
[SourceTitle "playchess.com"]
[Source "ChessBase"]
[SourceQuality "1"]
[TimeControl "600+2"]

1. d4 {[%emt 0:00:10]} Nf6 {[%emt 0:00:04]} 2. Nf3 {[%emt 0:00:28]} e6 {[%emt 0:00:01]} 3. c4 {[%emt 0:00:05]} b6 {[%emt 0:00:04]} 4. g3 {[%emt 0:00:04]} Ba6 {[%emt 0:00:02]} 5. b3 {[%emt 0:00:03]} d5 {[%emt 0:00:04]} 6. cxd5 {[%emt 0:00:29]} exd5 {[%emt 0:00:02]} 7. Bg2 {[%emt 0:00:01]} Bb4+ {[%emt 0:00:01]} 8. Bd2 {[%emt 0:00:03]} Be7 {[%emt 0:00:06]} 9. O-O {[%emt 0:00:01]} O-O {[%emt 0:00:03]} 10. Nc3 {[%emt 0:00:01]} Re8 {[%emt 0:00:37]} 11. a3 {[%emt 0:00:21]} Bb7 {[%emt 0:00:41]} 12. b4 {[%emt 0:00:04]} c6 {[%emt 0:00:33]} 13. Qb3 {[%emt 0:00:12]} Nbd7 {[%emt 0:00:30]} 14. Rfd1 {[%emt 0:00:02]} Bf8 {[%emt 0:00:08]} 15. a4 {[%emt 0:01:02]} a5 {[%emt 0:00:04]} 16. bxa5 {[%emt 0:00:34]} Rxa5 {[%emt 0:00:03]} 17. e4 {[%emt 0:00:41]} dxe4 {[%emt 0:02:47]} 18. Nxe4 {[%emt 0:00:35]} Rf5 {[%emt 0:02:02]} 19. Ne5 {[%emt 0:01:17]} Nd5 {[%emt 0:00:44]} 20. Nxd7 {[%emt 0:00:54]} Qxd7 {[%emt 0:00:01]} 21. Nc3 {[%emt 0:00:00]} Rh5 {[%emt 0:00:22]} 22. Nxd5 {[%emt 0:00:17]} cxd5 {[%emt 0:00:01]} 23. Qxb6 {[%emt 0:00:42]} Re2 {[%emt 0:00:11]} 24. Qb5 {[%emt 0:00:17]} Qg4 {[%emt 0:01:13]} 25. h3 {[%emt 0:01:01]} Qe6 {[%emt 0:00:01]} 26. Re1 {[%emt 0:00:31]} Ba6 {[%emt 0:00:01]} 27. Rxe2 {[%emt 0:00:08]} Qd6 {[%emt 0:00:15]} 28. Qe8 {[%emt 0:00:08]} 1-0

[Event "CCT Chessable Masters D-III 2024"]
[Site "Online"]
[Date "2024.02.03"]
[Round "52"]
[White "Deac, Bogdan-Daniel"]
[Black "ViIIagra"]
[Result "1-0"]
[ECO "A46"]
[WhiteElo "2690"]
[BlackElo "2594"]
[Annotator "ChessBase"]
[PlyCount "107"]
[EventDate "2024.01.12"]
[EventType "k.o."]
[EventCountry "NET"]
[SourceTitle "playchess.com"]
[Source "ChessBase"]
[SourceQuality "1"]
[TimeControl "600+2"]

1. d4 {[%emt 0:00:02]} Nf6 {[%emt 0:00:05]} 2. Nf3 {[%emt 0:00:02]} d6 {[%emt 0:00:02]} 3. Nc3 {[%emt 0:00:02]} Bf5 {[%emt 0:00:28]} 4. Nh4 {[%emt 0:00:02]} Bd7 {[%emt 0:00:08]} 5. e4 {[%emt 0:00:04]} e5 {[%emt 0:00:07]} 6. Nf3 {[%emt 0:00:02]} exd4 {[%emt 0:00:07]} 7. Nxd4 {[%emt 0:00:03]} Nc6 {[%emt 0:00:01]} 8. f3 {[%emt 0:00:32]} Be7 {[%emt 0:00:03]} 9. Be3 {[%emt 0:00:22]} O-O {[%emt 0:00:06]} 10. Be2 {[%emt 0:00:01]} Re8 {[%emt 0:00:23]} 11. O-O {[%emt 0:00:05]} a6 {[%emt 0:00:27]} 12. Qd2 {[%emt 0:01:00]} b5 {[%emt 0:00:39]} 13. Nxc6 {[%emt 0:00:21]} Bxc6 {[%emt 0:00:03]} 14. Bd4 {[%emt 0:00:00]} Nd7 {[%emt 0:00:14]} 15. Rae1 {[%emt 0:03:52]} Bf6 {[%emt 0:00:30]} 16. a3 {[%emt 0:00:12]} Bxd4+ {[%emt 0:01:04]} 17. Qxd4 {[%emt 0:00:02]} Qg5 {[%emt 0:00:01]} 18. Bd3 {[%emt 0:00:25]} Qc5 {[%emt 0:00:17]} 19. Qxc5 {[%emt 0:00:07]} dxc5 {[%emt 0:00:34]} 20. Rd1 {[%emt 0:00:05]} Nb6 {[%emt 0:01:09]} 21. b3 {[%emt 0:01:30]} b4 {[%emt 0:01:09]} 22. Ne2 {[%emt 0:00:07]} a5 {[%emt 0:00:10]} 23. axb4 {[%emt 0:00:07]} axb4 {[%emt 0:00:02]} 24. Ra1 {[%emt 0:00:08]} Kf8 {[%emt 0:00:28]} 25. h4 {[%emt 0:00:08]} Nd7 {[%emt 0:00:29]} 26. Kf2 {[%emt 0:00:27]} g6 {[%emt 0:00:02]} 27. Nf4 {[%emt 0:00:05]} Ke7 {[%emt 0:00:42]} 28. Bc4 {[%emt 0:00:19]} Ne5 {[%emt 0:00:55]} 29. Be2 {[%emt 0:00:34]} f5 {[%emt 0:00:06]} 30. exf5 {[%emt 0:00:04]} gxf5 {[%emt 0:00:00]} 31. Rfe1 {[%emt 0:00:02]} Kf6 {[%emt 0:00:03]} 32. Nh5+ {[%emt 0:00:03]} Kg6 {[%emt 0:00:03]} 33. Nf4+ {[%emt 0:00:01]} Kf6 {[%emt 0:00:01]} 34. Bf1 {[%emt 0:00:09]} Ng6 {[%emt 0:00:26]} 35. Nh5+ {[%emt 0:00:01]} Kf7 {[%emt 0:00:00]} 36. Bc4+ {[%emt 0:00:01]} Kf8 {[%emt 0:00:01]} 37. Rxa8 {[%emt 0:00:01]} Rxa8 {[%emt 0:00:02]} 38. Ng3 {[%emt 0:00:02]} Ra2 {[%emt 0:00:04]} 39. Bd3 {[%emt 0:00:05]} f4 {[%emt 0:00:01]} 40. Nf5 {[%emt 0:00:02]} Bd7 {[%emt 0:00:00]} 41. h5 {[%emt 0:00:01]} c4 {[%emt 0:00:05]} 42. bxc4 {[%emt 0:00:01]} Nh8 {[%emt 0:00:04]} 43. Rb1 {[%emt 0:00:02]} c5 {[%emt 0:00:01]} 44. Nd6 {[%emt 0:00:01]} h6 {[%emt 0:00:01]} 45. Nb7 {[%emt 0:00:01]} Be6 {[%emt 0:00:03]} 46. Kg1 {[%emt 0:00:03]} Bf7 {[%emt 0:00:04]} 47. Nxc5 {[%emt 0:00:00]} Bxh5 {[%emt 0:00:00]} 48. Ne6+ {[%emt 0:00:02]} Ke7 {[%emt 0:00:01]} 49. Nxf4 {[%emt 0:00:01]} Be8 {[%emt 0:00:01]} 50. Rxb4 {[%emt 0:00:01]} Nf7 {[%emt 0:00:00]} 51. Nd5+ {[%emt 0:00:02]} Kd6 {[%emt 0:00:01]} 52. Rb6+ {[%emt 0:00:02]} Kc5 {[%emt 0:00:00]} 53. Re6 {[%emt 0:00:01]} Bc6 {[%emt 0:00:02]} 54. Rxc6+ {[%emt 0:00:02]} 1-0

[Event "CCT Chessable Masters D-III 2024"]
[Site "Online"]
[Date "2024.02.03"]
[Round "52"]
[White "Sargissian, Gabriel"]
[Black "Lysyj, Igor"]
[Result "0-1"]
[ECO "D24"]
[WhiteElo "2672"]
[BlackElo "2589"]
[Annotator "ChessBase"]
[PlyCount "70"]
[EventDate "2024.01.12"]
[EventType "k.o."]
[EventCountry "NET"]
[SourceTitle "playchess.com"]
[Source "ChessBase"]
[SourceQuality "1"]
[TimeControl "600+2"]

1. d4 {[%emt 0:00:03]} Nf6 {[%emt 0:00:05]} 2. c4 {[%emt 0:00:01]} e6 {[%emt 0:00:01]} 3. Nf3 {[%emt 0:00:01]} d5 {[%emt 0:00:02]} 4. Nc3 {[%emt 0:00:12]} dxc4 {[%emt 0:00:03]} 5. e4 {[%emt 0:00:02]} Bb4 {[%emt 0:00:02]} 6. Bxc4 {[%emt 0:00:02]} Nxe4 {[%emt 0:00:01]} 7. O-O {[%emt 0:00:03]} Nf6 {[%emt 0:00:01]} 8. Qe2 {[%emt 0:00:05]} O-O {[%emt 0:00:02]} 9. Bg5 {[%emt 0:00:01]} h6 {[%emt 0:00:03]} 10. Bh4 {[%emt 0:00:02]} Be7 {[%emt 0:00:03]} 11. Rad1 {[%emt 0:00:02]} Nbd7 {[%emt 0:00:01]} 12. Rfe1 {[%emt 0:00:11]} Nb6 {[%emt 0:00:03]} 13. Bd3 {[%emt 0:00:04]} Nfd5 {[%emt 0:00:06]} 14. Bg3 {[%emt 0:00:02]} f5 {[%emt 0:00:31]} 15. h3 {[%emt 0:02:57]} Bf6 {[%emt 0:00:22]} 16. Nxd5 {[%emt 0:00:31]} Nxd5 {[%emt 0:00:04]} 17. Bc4 {[%emt 0:00:01]} c6 {[%emt 0:00:07]} 18. Ne5 {[%emt 0:00:27]} Bxe5 {[%emt 0:00:06]} 19. Bxe5 {[%emt 0:00:05]} Bd7 {[%emt 0:00:10]} 20. Rd3 {[%emt 0:00:08]} f4 {[%emt 0:01:18]} 21. Rb3 {[%emt 0:00:09]} b5 {[%emt 0:00:19]} 22. Bd3 {[%emt 0:00:18]} Qg5 {[%emt 0:00:24]} 23. Qe4 {[%emt 0:00:36]} Rf5 {[%emt 0:00:06]} 24. Qf3 {[%emt 0:00:05]} Rf7 {[%emt 0:00:08]} 25. a4 {[%emt 0:00:03]} bxa4 {[%emt 0:00:29]} 26. Ra3 {[%emt 0:00:46]} c5 {[%emt 0:00:55]} 27. Qe4 {[%emt 0:00:45]} Rf5 {[%emt 0:00:02]} 28. Qf3 {[%emt 0:00:21]} Rf7 {[%emt 0:00:11]} 29. dxc5 {[%emt 0:00:08]} Bc6 {[%emt 0:00:03]} 30. Be4 {[%emt 0:00:01]} Re8 {[%emt 0:02:10]} 31. b3 {[%emt 0:00:13]} axb3 {[%emt 0:01:06]} 32. Rxb3 {[%emt 0:00:01]} a5 {[%emt 0:00:01]} 33. Bd6 {[%emt 0:01:02]} a4 {[%emt 0:00:05]} 34. Rb2 {[%emt 0:00:13]} Qf6 {[%emt 0:01:18]} 35. Rd1 {[%emt 0:00:18]} Qxb2 {[%emt 0:00:07]} 0-1

[Event "CCT Chessable Masters D-III 2024"]
[Site "Online"]
[Date "2024.02.03"]
[Round "52"]
[White "MashaPutina"]
[Black "Antipov, Mikhail Al."]
[Result "0-1"]
[ECO "D38"]
[WhiteElo "2640"]
[BlackElo "2604"]
[Annotator "ChessBase"]
[PlyCount "84"]
[EventDate "2024.01.12"]
[EventType "k.o."]
[EventCountry "NET"]
[SourceTitle "playchess.com"]
[Source "ChessBase"]
[SourceQuality "1"]
[TimeControl "600+2"]

1. d4 {[%emt 0:00:02]} Nf6 {[%emt 0:00:03]} 2. c4 {[%emt 0:00:02]} e6 {[%emt 0:00:01]} 3. Nf3 {[%emt 0:00:01]} d5 {[%emt 0:00:03]} 4. Nc3 {[%emt 0:00:01]} Bb4 {[%emt 0:00:01]} 5. Qa4+ {[%emt 0:00:02]} Nc6 {[%emt 0:00:01]} 6. e3 {[%emt 0:00:01]} O-O {[%emt 0:00:01]} 7. Qc2 {[%emt 0:00:01]} Re8 {[%emt 0:00:02]} 8. Bd2 {[%emt 0:00:01]} Bf8 {[%emt 0:00:06]} 9. a3 {[%emt 0:00:01]} h6 {[%emt 0:00:04]} 10. cxd5 {[%emt 0:00:19]} exd5 {[%emt 0:00:02]} 11. h3 {[%emt 0:00:01]} a6 {[%emt 0:00:20]} 12. Bd3 {[%emt 0:00:03]} Bd6 {[%emt 0:00:43]} 13. g4 {[%emt 0:00:22]} b5 {[%emt 0:00:01]} 14. Rg1 {[%emt 0:00:58]} b4 {[%emt 0:00:18]} 15. Nxd5 {[%emt 0:01:19]} Bb7 {[%emt 0:03:19]} 16. Nxf6+ {[%emt 0:00:10]} Qxf6 {[%emt 0:00:00]} 17. Be2 {[%emt 0:00:01]} Qxf3 {[%emt 0:02:14]} 18. Bxf3 {[%emt 0:00:07]} Nxd4 {[%emt 0:00:00]} 19. Qc4 {[%emt 0:01:01]} Nxf3+ {[%emt 0:00:03]} 20. Ke2 {[%emt 0:00:01]} a5 {[%emt 0:01:19]} 21. Rgc1 {[%emt 0:00:34]} Ne5 {[%emt 0:01:47]} 22. Qf4 {[%emt 0:00:05]} Ba6+ {[%emt 0:00:01]} 23. Kd1 {[%emt 0:00:01]} Rad8 {[%emt 0:00:03]} 24. axb4 {[%emt 0:00:09]} Bxb4 {[%emt 0:00:02]} 25. Rc2 {[%emt 0:00:04]} Nc4 {[%emt 0:00:05]} 26. Rxc4 {[%emt 0:00:20]} Rxd2+ {[%emt 0:00:00]} 27. Kc1 {[%emt 0:00:01]} g5 {[%emt 0:00:08]} 28. Qxc7 {[%emt 0:00:05]} Bxc4 {[%emt 0:00:05]} 29. Qxc4 {[%emt 0:00:02]} Rxf2 {[%emt 0:00:03]} 30. Kb1 {[%emt 0:00:36]} Rxe3 {[%emt 0:00:02]} 31. Ka2 {[%emt 0:00:01]} Ra3+ {[%emt 0:00:01]} 32. Kb1 {[%emt 0:00:02]} Rxh3 {[%emt 0:00:00]} 33. Ka2 {[%emt 0:00:01]} Ra3+ {[%emt 0:00:02]} 34. Kb1 {[%emt 0:00:01]} Re3 {[%emt 0:00:00]} 35. Ka2 {[%emt 0:00:01]} Ree2 {[%emt 0:00:03]} 36. Rb1 {[%emt 0:00:01]} Be7 {[%emt 0:00:02]} 37. Qc8+ {[%emt 0:00:25]} Kg7 {[%emt 0:00:01]} 38. Qc3+ {[%emt 0:00:01]} Bf6 {[%emt 0:00:00]} 39. Qxa5 {[%emt 0:00:01]} Bxb2 {[%emt 0:00:01]} 40. Kb3 {[%emt 0:00:01]} Re3+ {[%emt 0:00:04]} 41. Kc4 {[%emt 0:00:09]} Rf4+ {[%emt 0:00:01]} 42. Kd5 {[%emt 0:00:07]} Re5+ {[%emt 0:00:00]} 0-1

[Event "CCT Chessable Masters D-III 2024"]
[Site "Online"]
[Date "2024.02.03"]
[Round "52"]
[White "Bortnyk, Oleksandr"]
[Black "kpio91"]
[Result "1-0"]
[ECO "B22"]
[WhiteElo "2637"]
[BlackElo "2432"]
[Annotator "NA"]
[PlyCount "85"]
[EventDate "2024.01.12"]
[EventType "k.o."]
[EventCountry "NET"]
[SourceTitle "playchess.com"]
[Source "ChessBase"]
[SourceQuality "1"]
[TimeControl "600+2"]

1. e4 {[%emt 0:00:15]} c5 {[%emt 0:00:04]} 2. c3 {[%emt 0:00:02]} Qa5 {[%emt 0:00:03]} 3. Nf3 {[%emt 0:00:49]} Nc6 {[%emt 0:00:12]} 4. Na3 {[%emt 0:01:01]} g6 {[%emt 0:00:03]} 5. d4 {[%emt 0:00:41]} cxd4 {[%emt 0:00:04]} 6. b4 {[%emt 0:00:01]} Qd8 {[%emt 0:00:20]} 7. b5 {[%emt 0:00:06]} Nb8 {[%emt 0:00:24]} 8. Qxd4 {[%emt 0:00:03]} Nf6 {[%emt 0:00:09]} 9. e5 {[%emt 0:00:15]} Ng8 {[%emt 0:00:35]} 10. Nc4 {[%emt 0:02:24]} Bg7 {[%emt 0:00:05]} 11. Bg5 {[%emt 0:00:02]} f6 {[%emt 0:00:40]} 12. Bh4 {[%emt 0:00:12]} fxe5 {[%emt 0:00:24]} 13. Qd5 {[%emt 0:01:56]} d6 {[%emt 0:01:41]} 14. Ng5 {[%emt 0:00:13]} Nh6 {[%emt 0:00:14]} 15. Bd3 {[%emt 0:00:08]} Qd7 {[%emt 0:02:27]} 16. O-O {[%emt 0:00:30]} Bf6 {[%emt 0:00:42]} 17. f4 {[%emt 0:00:05]} Bxg5 {[%emt 0:00:06]} 18. Bxg5 {[%emt 0:00:16]} Nf7 {[%emt 0:00:08]} 19. fxe5 {[%emt 0:00:07]} Qe6 {[%emt 0:00:31]} 20. Rxf7 {[%emt 0:00:52]} Qxf7 {[%emt 0:00:47]} 21. Qxf7+ {[%emt 0:00:07]} Kxf7 {[%emt 0:00:01]} 22. exd6 {[%emt 0:00:00]} Bf5 {[%emt 0:00:24]} 23. Bxf5 {[%emt 0:00:15]} gxf5 {[%emt 0:00:01]} 24. dxe7 {[%emt 0:00:00]} Nd7 {[%emt 0:00:01]} 25. Nd6+ {[%emt 0:00:03]} Kg6 {[%emt 0:00:08]} 26. Bh4 {[%emt 0:00:06]} Nc5 {[%emt 0:00:03]} 27. Re1 {[%emt 0:00:06]} Ne4 {[%emt 0:00:02]} 28. Nxe4 {[%emt 0:00:03]} fxe4 {[%emt 0:00:01]} 29. Rxe4 {[%emt 0:00:00]} Rac8 {[%emt 0:00:03]} 30. c4 {[%emt 0:00:04]} Rhe8 {[%emt 0:00:03]} 31. a4 {[%emt 0:00:05]} Kf5 {[%emt 0:00:04]} 32. Rd4 {[%emt 0:00:01]} Ke6 {[%emt 0:00:07]} 33. Kf2 {[%emt 0:00:04]} Rc5 {[%emt 0:00:05]} 34. Ke3 {[%emt 0:00:03]} Rf5 {[%emt 0:00:11]} 35. Rd8 {[%emt 0:00:04]} Kf7 {[%emt 0:00:01]} 36. Rd7 {[%emt 0:00:00]} Rh5 {[%emt 0:00:06]} 37. g3 {[%emt 0:00:01]} b6 {[%emt 0:00:05]} 38. Rxa7 {[%emt 0:00:02]} Rc5 {[%emt 0:00:01]} 39. Kd3 {[%emt 0:00:03]} Rec8 {[%emt 0:00:03]} 40. Rd7 {[%emt 0:00:07]} Re5 {[%emt 0:00:10]} 41. Rd8 {[%emt 0:00:03]} Rc7 {[%emt 0:00:03]} 42. Rf8+ {[%emt 0:00:01]} Kg7 {[%emt 0:00:01]} 43. e8=Q {[%emt 0:00:00]} 1-0